[Event "European Rapid Championship 2021"]
[Site "Katowice"]
[Date "2021.12.18"]
[Round "4.15"]
[White "Krasenkow, Michal"]
[Black "Helis, Tadeusz"]
[Result "1-0"]
[ECO "E90"]
[WhiteElo "2576"]
[BlackElo "2155"]
[Annotator "ChessBase"]
[PlyCount "81"]
[EventDate "2021.12.18"]
[EventType "swiss"]
[EventCountry "POL"]
[SourceTitle "playchess.com"]
[Source "ChessBase"]
[SourceQuality "1"]
[TimeControl "900+10"]

1. d4 {[%emt 0:00:03]} Nf6 {[%emt 0:00:02]} 2. c4 {[%emt 0:00:01]} d6 {[%emt 0:
00:17]} 3. Nc3 {[%emt 0:00:02]} g6 {[%emt 0:00:03]} 4. e4 {[%emt 0:00:02]} Bg7
{[%emt 0:00:02]} 5. Nf3 {[%emt 0:00:01]} O-O {[%emt 0:00:03]} 6. h3 {[%emt 0:
00:01]} e5 {[%emt 0:00:52]} 7. d5 {[%emt 0:00:02]} a5 {[%emt 0:00:02]} 8. Bg5 {
[%emt 0:00:08]} Nbd7 {[%emt 0:00:07]} 9. Nd2 {[%emt 0:00:06]} Nc5 {[%emt 0:00:
12]} 10. Be2 {[%emt 0:00:04]} Bd7 {[%emt 0:00:05]} 11. Nb3 {[%emt 0:00:54]} b6
{[%emt 0:00:04]} 12. Nxc5 {[%emt 0:00:02]} bxc5 {[%emt 0:00:03]} 13. Qd2 {
[%emt 0:00:05]} Qb8 {[%emt 0:00:45]} 14. O-O {[%emt 0:00:32]} h6 {[%emt 0:01:
08]} 15. Bxh6 {[%emt 0:00:26]} Bxh6 {[%emt 0:00:02]} 16. Qxh6 {[%emt 0:00:01]}
Qxb2 {[%emt 0:00:02]} 17. Rac1 {[%emt 0:00:38]} Rfb8 {[%emt 0:01:32]} 18. h4 {
[%emt 0:03:01]} Nh7 {[%emt 0:02:22]} 19. Qe3 {[%emt 0:04:21]} Qb7 {[%emt 0:00:
04]} 20. f4 {[%emt 0:00:13]} exf4 {[%emt 0:00:18]} 21. Rxf4 {[%emt 0:00:01]}
Rf8 {[%emt 0:00:05]} 22. Rcf1 {[%emt 0:00:56]} Rae8 {[%emt 0:00:48]} 23. Rb1 {
[%emt 0:01:01]} Qc8 {[%emt 0:00:17]} 24. Qg3 {[%emt 0:00:13]} Kh8 {[%emt 0:00:
11]} 25. Nd1 {[%emt 0:00:25]} Re7 {[%emt 0:01:06]} 26. Nf2 {[%emt 0:00:15]} Qe8
{[%emt 0:00:12]} 27. Qc3+ {[%emt 0:00:23]} Kg8 {[%emt 0:00:04]} 28. Qxa5 {
[%emt 0:00:24]} Qa8 {[%emt 0:00:19]} 29. Qxc7 {[%emt 0:00:10]} Qxa2 {[%emt 0:
00:02]} 30. Bd3 {[%emt 0:00:13]} Rfe8 {[%emt 0:06:22]} 31. Qxd6 {[%emt 0:00:09]
} Ba4 {[%emt 0:00:03]} 32. Qxc5 {[%emt 0:00:14]} Bc2 {[%emt 0:00:04]} 33. Bxc2
{[%emt 0:00:05]} Qxc2 {[%emt 0:00:02]} 34. Rf1 {[%emt 0:00:08]} Qd2 {[%emt 0:
00:09]} 35. Rf3 {[%emt 0:00:58]} Qh6 {[%emt 0:00:32]} 36. d6 {[%emt 0:01:12]}
Rd7 {[%emt 0:00:02]} 37. Ng4 {[%emt 0:00:20]} Qxh4 {[%emt 0:00:03]} 38. Ne5 {
[%emt 0:00:04]} Ng5 {[%emt 0:00:21]} 39. Nxd7 {[%emt 0:00:06]} Nxf3+ {[%emt 0:
00:01]} 40. Rxf3 {[%emt 0:00:01]} Qe1+ {[%emt 0:00:02]} 41. Rf1 {[%emt 0:00:01]
} 1-0

[Event "European Rapid Championship 2021"]
[Site "Katowice"]
[Date "2021.12.18"]
[Round "4.15"]
[White "Danielyan, Vahe"]
[Black "Cichon, Jakub"]
[Result "1-0"]
[ECO "C54"]
[WhiteElo "2198"]
[BlackElo "1854"]
[Annotator "NA"]
[PlyCount "91"]
[EventDate "2021.12.18"]
[EventType "swiss"]
[EventCountry "POL"]
[SourceTitle "playchess.com"]
[Source "ChessBase"]
[SourceQuality "1"]
[TimeControl "900+10"]

1. e4 {[%emt 0:00:03]} e5 {[%emt 0:00:01]} 2. Nf3 {[%emt 0:00:01]} Nc6 {
[%emt 0:00:02]} 3. Bc4 {[%emt 0:00:37]} Bc5 {[%emt 0:00:03]} 4. c3 {[%emt 0:00:
01]} Nf6 {[%emt 0:00:01]} 5. d4 {[%emt 0:00:02]} exd4 {[%emt 0:00:01]} 6. b4 {
[%emt 0:00:01]} Bb6 {[%emt 0:01:06]} 7. e5 {[%emt 0:00:01]} d5 {[%emt 0:00:46]}
8. Bb5 {[%emt 0:00:10]} Ne4 {[%emt 0:00:32]} 9. Nxd4 {[%emt 0:00:14]} Bd7 {
[%emt 0:00:07]} 10. Bxc6 {[%emt 0:00:27]} bxc6 {[%emt 0:00:10]} 11. O-O {
[%emt 0:00:03]} O-O {[%emt 0:00:45]} 12. f3 {[%emt 0:00:24]} Ng5 {[%emt 0:00:
14]} 13. Nd2 {[%emt 0:00:04]} a5 {[%emt 0:01:38]} 14. N2b3 {[%emt 0:00:50]}
axb4 {[%emt 0:00:39]} 15. cxb4 {[%emt 0:00:01]} Ne6 {[%emt 0:00:11]} 16. Be3 {
[%emt 0:00:14]} Qe7 {[%emt 0:01:16]} 17. Qe1 {[%emt 0:00:01]} Nxd4 {[%emt 0:01:
18]} 18. Bxd4 {[%emt 0:00:02]} Bxd4+ {[%emt 0:00:03]} 19. Nxd4 {[%emt 0:00:01]}
c5 {[%emt 0:00:10]} 20. bxc5 {[%emt 0:00:01]} Qxc5 {[%emt 0:00:04]} 21. Qf2 {
[%emt 0:00:01]} Ra4 {[%emt 0:00:41]} 22. Nb3 {[%emt 0:01:03]} Qe7 {[%emt 0:01:
00]} 23. Rfe1 {[%emt 0:01:22]} Rfa8 {[%emt 0:01:02]} 24. Qc5 {[%emt 0:00:58]}
Qe6 {[%emt 0:01:23]} 25. Qxc7 {[%emt 0:00:36]} Rc8 {[%emt 0:01:32]} 26. Qd6 {
[%emt 0:00:58]} Qxd6 {[%emt 0:00:27]} 27. exd6 {[%emt 0:00:01]} Ra6 {[%emt 0:
00:01]} 28. a4 {[%emt 0:01:10]} Rxd6 {[%emt 0:00:28]} 29. a5 {[%emt 0:00:15]}
Ra8 {[%emt 0:01:03]} 30. Nc5 {[%emt 0:00:30]} Bb5 {[%emt 0:00:23]} 31. a6 {
[%emt 0:00:10]} Rc6 {[%emt 0:00:51]} 32. Rec1 {[%emt 0:01:00]} Bc4 {[%emt 0:00:
06]} 33. Ra5 {[%emt 0:00:30]} Ra7 {[%emt 0:00:39]} 34. Kf2 {[%emt 0:00:13]} Kf8
{[%emt 0:00:05]} 35. Ke3 {[%emt 0:00:03]} Ke7 {[%emt 0:00:06]} 36. Kd4 {
[%emt 0:00:03]} Kd6 {[%emt 0:00:44]} 37. Rb1 {[%emt 0:00:12]} Rxc5 {[%emt 0:01:
12]} 38. Rxc5 {[%emt 0:00:02]} Rxa6 {[%emt 0:00:04]} 39. Rb7 {[%emt 0:00:11]}
Ke6 {[%emt 0:00:26]} 40. Rcc7 {[%emt 0:00:03]} Ra2 {[%emt 0:00:11]} 41. Rb6+ {
[%emt 0:00:27]} Kf5 {[%emt 0:00:03]} 42. Rxf7+ {[%emt 0:00:02]} Kg5 {[%emt 0:
00:04]} 43. Rxg7+ {[%emt 0:00:05]} Kh5 {[%emt 0:00:13]} 44. Rxh7+ {[%emt 0:00:
04]} Kg5 {[%emt 0:00:01]} 45. Rg7+ {[%emt 0:00:04]} Kh5 {[%emt 0:00:05]} 46.
g4+ {[%emt 0:00:02]} 1-0

[Event "European Rapid Championship 2021"]
[Site "Katowice"]
[Date "2021.12.18"]
[Round "4.16"]
[White "Gretarsson, Helgi Ass"]
[Black "Katolik, Kamil"]
[Result "1-0"]
[ECO "D02"]
[WhiteElo "2476"]
[BlackElo "1751"]
[Annotator "ChessBase"]
[PlyCount "58"]
[EventDate "2021.12.18"]
[EventType "swiss"]
[EventCountry "POL"]
[SourceTitle "playchess.com"]
[Source "ChessBase"]
[SourceQuality "1"]
[TimeControl "900+10"]

1. d4 {[%emt 0:00:02]} d5 {[%emt 0:01:19]} 2. Nf3 {[%emt 0:00:09]} e6 {[%emt 0:
00:02]} 3. g3 {[%emt 0:00:04]} c6 {[%emt 0:00:02]} 4. Bg2 {[%emt 0:00:02]} f5 {
[%emt 0:00:01]} 5. O-O {[%emt 0:00:01]} Nf6 {[%emt 0:00:02]} 6. c4 {[%emt 0:00:
01]} Bd6 {[%emt 0:00:01]} 7. b3 {[%emt 0:00:02]} Qe7 {[%emt 0:00:08]} 8. Bb2 {
[%emt 0:00:14]} O-O {[%emt 0:00:05]} 9. Qc1 {[%emt 0:00:00]} Ne4 {[%emt 0:00:
09]} 10. Ba3 {[%emt 0:00:09]} Nd7 {[%emt 0:00:06]} 11. Bxd6 {[%emt 0:00:14]}
Qxd6 {[%emt 0:00:04]} 12. Qa3 {[%emt 0:00:01]} Qxa3 {[%emt 0:00:18]} 13. Nxa3 {
[%emt 0:00:01]} b6 {[%emt 0:00:03]} 14. Rfc1 {[%emt 0:00:05]} Bb7 {[%emt 0:00:
07]} 15. Ne1 {[%emt 0:00:06]} f4 {[%emt 0:01:21]} 16. Nd3 {[%emt 0:03:37]} g5 {
[%emt 0:01:58]} 17. Bh3 {[%emt 0:00:50]} Rae8 {[%emt 0:08:02]} 18. cxd5 {
[%emt 0:00:07]} cxd5 {[%emt 0:00:42]} 19. Rc7 {[%emt 0:00:01]} Bc8 {[%emt 0:00:
01]} 20. Rxc8 {[%emt 0:01:47]} Rxc8 {[%emt 0:00:58]} 21. Bxe6+ {[%emt 0:00:02]}
Kg7 {[%emt 0:00:02]} 22. Bxd7 {[%emt 0:00:02]} Rc7 {[%emt 0:00:36]} 23. Bg4 {
[%emt 0:01:10]} fxg3 {[%emt 0:00:32]} 24. hxg3 {[%emt 0:00:05]} a5 {[%emt 0:00:
37]} 25. Kg2 {[%emt 0:02:44]} Rc3 {[%emt 0:00:58]} 26. f3 {[%emt 0:04:11]} Nf6
{[%emt 0:00:13]} 27. Bf5 {[%emt 0:00:01]} Re8 {[%emt 0:00:39]} 28. Ne5 {
[%emt 0:00:16]} Re7 {[%emt 0:00:29]} 29. Nb5 {[%emt 0:00:08]} Re3 1-0

[Event "European Rapid Championship 2021"]
[Site "Katowice"]
[Date "2021.12.18"]
[Round "4.16"]
[White "Czerw, Dawid"]
[Black "Mirzoev, Emil"]
[Result "0-1"]
[ECO "A53"]
[WhiteElo "2158"]
[BlackElo "2418"]
[Annotator "NA"]
[PlyCount "58"]
[EventDate "2021.12.18"]
[EventType "swiss"]
[EventCountry "POL"]
[SourceTitle "playchess.com"]
[Source "ChessBase"]
[SourceQuality "1"]
[TimeControl "900+10"]

1. d4 {[%emt 0:00:02]} Nf6 {[%emt 0:00:09]} 2. c4 {[%emt 0:00:01]} d6 {[%emt 0:
00:24]} 3. Nc3 {[%emt 0:00:10]} Bf5 {[%emt 0:00:09]} 4. g3 {[%emt 0:00:08]} e5
{[%emt 0:00:14]} 5. Bg2 {[%emt 0:00:08]} c6 {[%emt 0:00:05]} 6. e4 {[%emt 0:00:
15]} Be6 {[%emt 0:00:16]} 7. d5 {[%emt 0:00:16]} cxd5 {[%emt 0:00:19]} 8. cxd5
{[%emt 0:00:05]} Bd7 {[%emt 0:00:02]} 9. Nge2 {[%emt 0:00:05]} Be7 {[%emt 0:00:
10]} 10. O-O {[%emt 0:00:04]} O-O {[%emt 0:00:05]} 11. h3 {[%emt 0:00:02]} b5 {
[%emt 0:00:35]} 12. a3 {[%emt 0:00:08]} a5 {[%emt 0:00:04]} 13. Be3 {[%emt 0:
00:04]} Na6 {[%emt 0:00:03]} 14. f4 {[%emt 0:00:35]} Qb8 {[%emt 0:01:16]} 15.
fxe5 {[%emt 0:01:53]} dxe5 {[%emt 0:00:09]} 16. d6 {[%emt 0:00:35]} Bxd6 {
[%emt 0:01:37]} 17. Rxf6 {[%emt 0:02:54]} gxf6 {[%emt 0:00:02]} 18. Nd5 {
[%emt 0:00:01]} Be6 {[%emt 0:03:08]} 19. Nec3 {[%emt 0:01:58]} Bc5 {[%emt 0:05:
14]} 20. Nxf6+ {[%emt 0:04:20]} Kg7 {[%emt 0:00:23]} 21. Bxc5 {[%emt 0:00:04]}
Nxc5 {[%emt 0:00:07]} 22. Qf3 {[%emt 0:00:08]} Nd7 {[%emt 0:01:32]} 23. Rf1 {
[%emt 0:00:24]} Qd8 {[%emt 0:00:26]} 24. Ncd5 {[%emt 0:02:43]} Bxd5 {[%emt 0:
00:46]} 25. Qg4+ {[%emt 0:01:07]} Kh8 {[%emt 0:00:19]} 26. Nxd7 {[%emt 0:00:51]
} Be6 {[%emt 0:00:25]} 27. Qh5 {[%emt 0:00:11]} Bxd7 {[%emt 0:00:25]} 28. Qh6 {
[%emt 0:00:10]} f6 {[%emt 0:00:08]} 29. Rd1 {[%emt 0:00:07]} Qe7 {[%emt 0:00:
11]} 0-1

[Event "European Rapid Championship 2021"]
[Site "Katowice"]
[Date "2021.12.18"]
[Round "4.17"]
[White "Brodowski, Piotr"]
[Black "Kowalczyk, Mariusz"]
[Result "1-0"]
[ECO "E15"]
[WhiteElo "2414"]
[BlackElo "2047"]
[Annotator "NA"]
[PlyCount "71"]
[EventDate "2021.12.18"]
[EventType "swiss"]
[EventCountry "POL"]
[SourceTitle "playchess.com"]
[Source "ChessBase"]
[SourceQuality "1"]
[TimeControl "900+10"]

1. d4 {[%emt 0:04:33]} Nf6 {[%emt 0:00:02]} 2. c4 {[%emt 0:00:01]} e6 {[%emt 0:
00:03]} 3. Nf3 {[%emt 0:00:02]} b6 {[%emt 0:00:11]} 4. g3 {[%emt 0:00:01]} Bb7
{[%emt 0:00:02]} 5. Bg2 {[%emt 0:00:02]} g6 {[%emt 0:00:18]} 6. O-O {[%emt 0:
00:25]} Bg7 {[%emt 0:00:02]} 7. Nc3 {[%emt 0:00:52]} Ne4 {[%emt 0:00:41]} 8.
Qd3 {[%emt 0:00:02]} Nxc3 {[%emt 0:00:09]} 9. bxc3 {[%emt 0:00:01]} O-O {
[%emt 0:00:16]} 10. e4 {[%emt 0:00:03]} Nc6 {[%emt 0:00:32]} 11. h4 {[%emt 0:
02:47]} Ba6 {[%emt 0:00:36]} 12. h5 {[%emt 0:02:21]} Na5 {[%emt 0:00:31]} 13.
Nd2 {[%emt 0:00:01]} d5 {[%emt 0:00:48]} 14. exd5 {[%emt 0:01:47]} exd5 {
[%emt 0:00:05]} 15. Re1 {[%emt 0:00:27]} Nxc4 {[%emt 0:00:26]} 16. Nxc4 {
[%emt 0:00:02]} Bxc4 {[%emt 0:00:03]} 17. Qf3 {[%emt 0:00:01]} Re8 {[%emt 0:02:
08]} 18. Bf4 {[%emt 0:00:12]} Qd7 {[%emt 0:00:49]} 19. h6 {[%emt 0:00:51]} Bf8
{[%emt 0:01:36]} 20. Be5 {[%emt 0:01:18]} f5 {[%emt 0:00:37]} 21. Qf4 {[%emt 0:
00:51]} c6 22. Bh3 {[%emt 0:00:33]} Qf7 {[%emt 0:00:54]} 23. Re3 {[%emt 0:00:
06]} Be7 {[%emt 0:01:15]} 24. g4 {[%emt 0:00:15]} g5 {[%emt 0:00:38]} 25. Qxf5
{[%emt 0:00:02]} Qxf5 {[%emt 0:00:02]} 26. gxf5 {[%emt 0:00:01]} Bf8 {[%emt 0:
00:08]} 27. f6 {[%emt 0:00:06]} Bxh6 {[%emt 0:00:45]} 28. Rf3 {[%emt 0:00:21]}
Kf7 {[%emt 0:00:24]} 29. Re1 {[%emt 0:00:15]} g4 {[%emt 0:02:19]} 30. Bxg4 {
[%emt 0:00:01]} Rg8 {[%emt 0:00:01]} 31. Rg3 {[%emt 0:00:01]} Rxg4 {[%emt 0:00:
01]} 32. Rxg4 {[%emt 0:00:01]} Bd2 {[%emt 0:00:01]} 33. Rg7+ {[%emt 0:00:30]}
Ke6 {[%emt 0:00:02]} 34. Re7+ {[%emt 0:00:15]} Kf5 {[%emt 0:00:15]} 35. f7 {
[%emt 0:00:07]} Kg6 {[%emt 0:00:16]} 36. Rd1 {[%emt 0:00:14]} 1-0

[Event "European Rapid Championship 2021"]
[Site "Katowice"]
[Date "2021.12.18"]
[Round "4.18"]
[White "Tworzydlo, Piotr"]
[Black "Dragnev, Valentin"]
[Result "0-1"]
[ECO "B01"]
[WhiteElo "2152"]
[BlackElo "2409"]
[Annotator "NA"]
[PlyCount "94"]
[EventDate "2021.12.18"]
[EventType "swiss"]
[EventCountry "POL"]
[SourceTitle "playchess.com"]
[Source "ChessBase"]
[SourceQuality "1"]
[TimeControl "900+10"]

1. e4 {[%emt 0:00:04]} d5 {[%emt 0:00:02]} 2. exd5 {[%emt 0:00:04]} Qxd5 {
[%emt 0:00:02]} 3. Nf3 {[%emt 0:00:08]} Bg4 {[%emt 0:00:24]} 4. Be2 {[%emt 0:
00:29]} Nc6 {[%emt 0:00:04]} 5. Nc3 {[%emt 0:00:31]} Qh5 {[%emt 0:03:23]} 6.
Ne4 {[%emt 0:01:19]} Nf6 {[%emt 0:01:57]} 7. Ng3 {[%emt 0:00:22]} Qg6 {[%emt 0:
00:28]} 8. h3 {[%emt 0:00:30]} Bxf3 {[%emt 0:00:30]} 9. Bxf3 {[%emt 0:00:05]}
Nd4 {[%emt 0:00:08]} 10. d3 {[%emt 0:01:28]} O-O-O {[%emt 0:00:07]} 11. Be3 {
[%emt 0:00:54]} e6 {[%emt 0:00:49]} 12. O-O {[%emt 0:01:21]} Kb8 {[%emt 0:00:
19]} 13. a4 {[%emt 0:01:10]} Nxf3+ {[%emt 0:01:58]} 14. Qxf3 {[%emt 0:00:06]}
Bd6 {[%emt 0:00:04]} 15. Ne4 {[%emt 0:01:59]} Nd5 {[%emt 0:00:25]} 16. a5 {
[%emt 0:01:38]} a6 {[%emt 0:00:05]} 17. Ra4 {[%emt 0:01:13]} Qf5 {[%emt 0:00:
42]} 18. Qxf5 {[%emt 0:00:54]} exf5 {[%emt 0:00:02]} 19. Nxd6 {[%emt 0:00:13]}
Rxd6 {[%emt 0:00:07]} 20. Bd2 {[%emt 0:00:16]} Re8 {[%emt 0:00:35]} 21. Re1 {
[%emt 0:00:02]} Rxe1+ {[%emt 0:00:41]} 22. Bxe1 {[%emt 0:00:02]} Rc6 {[%emt 0:
00:02]} 23. Rc4 {[%emt 0:01:22]} Re6 {[%emt 0:01:27]} 24. Kf1 {[%emt 0:00:06]}
g6 {[%emt 0:00:42]} 25. Rd4 {[%emt 0:00:26]} Rd6 {[%emt 0:01:25]} 26. c4 {
[%emt 0:00:10]} Ne7 {[%emt 0:00:25]} 27. Rxd6 {[%emt 0:00:09]} cxd6 {[%emt 0:
00:01]} 28. Ke2 {[%emt 0:00:47]} Kc7 {[%emt 0:00:20]} 29. Ke3 {[%emt 0:00:31]}
Kd7 {[%emt 0:00:06]} 30. Bc3 {[%emt 0:00:13]} Ke6 {[%emt 0:00:13]} 31. h4 {
[%emt 0:00:31]} h5 {[%emt 0:00:10]} 32. b4 {[%emt 0:00:08]} Nc6 {[%emt 0:01:25]
} 33. Kf4 {[%emt 0:00:33]} d5 {[%emt 0:00:22]} 34. Ke3 {[%emt 0:00:40]} d4+ {
[%emt 0:00:26]} 35. Bxd4 {[%emt 0:00:02]} f4+ {[%emt 0:00:01]} 36. Ke4 {
[%emt 0:00:13]} f5+ {[%emt 0:00:09]} 37. Kxf4 {[%emt 0:00:03]} Nxd4 {[%emt 0:
00:02]} 38. f3 {[%emt 0:00:17]} Nc6 {[%emt 0:00:04]} 39. b5 {[%emt 0:00:16]}
axb5 {[%emt 0:00:09]} 40. cxb5 {[%emt 0:00:03]} Nxa5 {[%emt 0:00:02]} 41. g4 {
[%emt 0:00:02]} Kf6 {[%emt 0:00:22]} 42. gxh5 {[%emt 0:00:20]} gxh5 {[%emt 0:
00:01]} 43. Ke3 {[%emt 0:00:07]} b6 {[%emt 0:00:19]} 44. Kd4 {[%emt 0:00:25]}
Ke6 {[%emt 0:00:02]} 45. Ke3 {[%emt 0:00:02]} Nb7 {[%emt 0:00:06]} 46. Kf4 {
[%emt 0:00:12]} Kf6 {[%emt 0:00:02]} 47. Ke3 {[%emt 0:00:03]} Nd6 {[%emt 0:00:
06]} 0-1

[Event "European Rapid Championship 2021"]
[Site "Katowice"]
[Date "2021.12.18"]
[Round "4.18"]
[White "Mirski, Michal"]
[Black "Kjartansson, Gudmundur"]
[Result "0-1"]
[ECO "B19"]
[WhiteElo "1852"]
[BlackElo "2402"]
[Annotator "NA"]
[PlyCount "140"]
[EventDate "2021.12.18"]
[EventType "swiss"]
[EventCountry "POL"]
[SourceTitle "playchess.com"]
[Source "ChessBase"]
[SourceQuality "1"]
[TimeControl "900+10"]

1. e4 {[%emt 0:00:02]} c6 {[%emt 0:00:01]} 2. d4 {[%emt 0:00:04]} d5 {[%emt 0:
00:01]} 3. Nc3 {[%emt 0:00:02]} dxe4 {[%emt 0:00:00]} 4. Nxe4 {[%emt 0:00:01]}
Bf5 {[%emt 0:00:04]} 5. Ng3 {[%emt 0:00:01]} Bg6 {[%emt 0:00:01]} 6. h4 {
[%emt 0:00:03]} h6 {[%emt 0:00:00]} 7. Nf3 {[%emt 0:00:03]} Nd7 {[%emt 0:00:20]
} 8. Bd3 {[%emt 0:00:01]} Bxd3 {[%emt 0:00:04]} 9. Qxd3 {[%emt 0:00:02]} e6 {
[%emt 0:00:03]} 10. Bd2 {[%emt 0:00:02]} Ngf6 {[%emt 0:00:03]} 11. O-O-O {
[%emt 0:00:03]} Be7 {[%emt 0:00:05]} 12. Kb1 {[%emt 0:00:30]} Qc7 {[%emt 0:00:
41]} 13. Ne4 {[%emt 0:00:41]} O-O-O {[%emt 0:00:24]} 14. Rhe1 {[%emt 0:00:34]}
Ng4 {[%emt 0:01:09]} 15. Qe2 {[%emt 0:00:54]} Rhe8 {[%emt 0:00:20]} 16. g3 {
[%emt 0:00:18]} f5 {[%emt 0:00:14]} 17. Nc3 {[%emt 0:00:35]} Bf6 {[%emt 0:01:
03]} 18. Bf4 {[%emt 0:00:56]} Qb6 {[%emt 0:00:13]} 19. Nd2 {[%emt 0:01:29]} Qb4
{[%emt 0:06:21]} 20. a3 {[%emt 0:02:34]} Qf8 {[%emt 0:00:08]} 21. Nc4 {[%emt 0:
00:50]} Nb6 {[%emt 0:00:02]} 22. Nd6+ {[%emt 0:04:37]} Rxd6 {[%emt 0:00:07]}
23. Bxd6 {[%emt 0:00:01]} Qxd6 {[%emt 0:00:01]} 24. f3 {[%emt 0:00:01]} Qxg3 {
[%emt 0:00:59]} 25. fxg4 {[%emt 0:00:17]} Qxg4 {[%emt 0:00:11]} 26. Qxg4 {
[%emt 0:01:12]} fxg4 {[%emt 0:00:01]} 27. h5 {[%emt 0:00:02]} Nc4 {[%emt 0:02:
21]} 28. Ne4 {[%emt 0:00:20]} Kc7 {[%emt 0:00:37]} 29. Rg1 {[%emt 0:00:51]} Re7
{[%emt 0:03:10]} 30. Rd3 {[%emt 0:00:33]} c5 {[%emt 0:00:21]} 31. Nxc5 {
[%emt 0:00:27]} e5 {[%emt 0:00:03]} 32. Ne4 {[%emt 0:00:18]} exd4 {[%emt 0:00:
09]} 33. Nxf6 {[%emt 0:00:10]} gxf6 {[%emt 0:00:00]} 34. Rxg4 {[%emt 0:00:05]}
Ne5 {[%emt 0:01:03]} 35. Re4 {[%emt 0:00:07]} f5 {[%emt 0:00:01]} 36. Re2 {
[%emt 0:00:12]} f4 {[%emt 0:00:05]} 37. Rxd4 {[%emt 0:00:05]} f3 {[%emt 0:00:
01]} 38. Rf2 {[%emt 0:00:09]} Rg7 {[%emt 0:00:08]} 39. Rd5 {[%emt 0:01:52]} Rg5
{[%emt 0:00:25]} 40. c4 {[%emt 0:00:03]} Rxh5 {[%emt 0:00:07]} 41. Ka2 {
[%emt 0:00:03]} Rg5 {[%emt 0:00:04]} 42. Kb3 {[%emt 0:00:14]} h5 {[%emt 0:00:
12]} 43. Kc3 {[%emt 0:00:17]} h4 {[%emt 0:00:16]} 44. Rd4 {[%emt 0:00:01]} Rg2
{[%emt 0:00:13]} 45. Rf1 {[%emt 0:00:39]} h3 {[%emt 0:00:01]} 46. Rh4 {[%emt 0:
00:05]} h2 {[%emt 0:00:02]} 47. Kd4 {[%emt 0:00:14]} Rg1 {[%emt 0:00:46]} 48.
Kxe5 {[%emt 0:00:13]} Rxf1 49. Rxh2 {[%emt 0:00:01]} f2 {[%emt 0:00:26]} 50.
Kf4 {[%emt 0:00:05]} Kc6 {[%emt 0:00:03]} 51. b4 {[%emt 0:00:08]} Rc1 {[%emt 0:
00:11]} 52. Rxf2 {[%emt 0:00:05]} Rxc4+ {[%emt 0:00:00]} 53. Ke5 {[%emt 0:00:
07]} a6 {[%emt 0:00:17]} 54. Rf3 {[%emt 0:00:23]} Kb5 {[%emt 0:00:03]} 55. Kd5
{[%emt 0:00:08]} Rc1 {[%emt 0:00:09]} 56. Kd4 {[%emt 0:00:12]} Ka4 {[%emt 0:00:
12]} 57. Rf7 {[%emt 0:00:09]} b5 {[%emt 0:00:03]} 58. Rf6 {[%emt 0:00:13]} Kxa3
{[%emt 0:00:01]} 59. Rxa6+ {[%emt 0:00:01]} Kxb4 {[%emt 0:00:02]} 60. Rh6 {
[%emt 0:00:21]} Rd1+ {[%emt 0:00:03]} 61. Ke3 {[%emt 0:00:02]} Rd8 {[%emt 0:00:
10]} 62. Rh4+ {[%emt 0:00:23]} Ka3 {[%emt 0:00:03]} 63. Rh7 {[%emt 0:00:15]} b4
{[%emt 0:00:02]} 64. Ra7+ {[%emt 0:00:02]} Kb2 {[%emt 0:00:01]} 65. Rb7 {
[%emt 0:00:04]} b3 {[%emt 0:00:01]} 66. Ke2 {[%emt 0:00:05]} Kc2 {[%emt 0:00:
07]} 67. Rc7+ {[%emt 0:00:02]} Kb1 {[%emt 0:00:01]} 68. Rb7 {[%emt 0:00:01]} b2
{[%emt 0:00:01]} 69. Rb6 {[%emt 0:00:08]} Ra8 {[%emt 0:00:25]} 70. Kd2 {
[%emt 0:00:23]} Ka1 {[%emt 0:00:03]} 0-1

[Event "European Rapid Championship 2021"]
[Site "Katowice"]
[Date "2021.12.18"]
[Round "4.19"]
[White "Blohberger, Felix"]
[Black "Woloch, Oskar"]
[Result "1-0"]
[ECO "D02"]
[WhiteElo "2409"]
[BlackElo "2036"]
[Annotator "NA"]
[PlyCount "75"]
[EventDate "2021.12.18"]
[EventType "swiss"]
[EventCountry "POL"]
[SourceTitle "playchess.com"]
[Source "ChessBase"]
[SourceQuality "1"]
[TimeControl "900+10"]

1. d4 {[%emt 0:00:03]} d5 {[%emt 0:00:13]} 2. Nf3 {[%emt 0:00:05]} Nf6 {
[%emt 0:00:20]} 3. Bf4 {[%emt 0:00:06]} c6 {[%emt 0:00:09]} 4. e3 {[%emt 0:00:
05]} Bg4 {[%emt 0:00:40]} 5. c4 {[%emt 0:00:28]} e6 {[%emt 0:00:04]} 6. Nc3 {
[%emt 0:00:18]} Nbd7 {[%emt 0:00:11]} 7. Qb3 {[%emt 0:01:01]} Bxf3 {[%emt 0:00:
19]} 8. gxf3 {[%emt 0:00:03]} Qb6 {[%emt 0:00:16]} 9. c5 {[%emt 0:01:15]} Qxb3
{[%emt 0:00:39]} 10. axb3 {[%emt 0:00:02]} Nh5 {[%emt 0:00:01]} 11. Bc7 {
[%emt 0:01:30]} Rc8 {[%emt 0:00:11]} 12. Bg3 {[%emt 0:00:04]} a6 {[%emt 0:00:
16]} 13. f4 {[%emt 0:00:09]} f6 {[%emt 0:01:43]} 14. Be2 {[%emt 0:01:11]} Nxg3
{[%emt 0:00:06]} 15. hxg3 {[%emt 0:00:03]} Kf7 {[%emt 0:00:25]} 16. Kd2 {
[%emt 0:00:11]} Re8 {[%emt 0:00:31]} 17. g4 {[%emt 0:02:26]} e5 {[%emt 0:00:55]
} 18. Bd3 {[%emt 0:02:16]} g6 {[%emt 0:00:17]} 19. f5 {[%emt 0:00:30]} Be7 {
[%emt 0:01:23]} 20. Rxh7+ {[%emt 0:00:12]} Rxh7 {[%emt 0:00:15]} 21. fxg6+ {
[%emt 0:00:02]} Kg7 {[%emt 0:00:02]} 22. gxh7 {[%emt 0:00:01]} e4 {[%emt 0:00:
01]} 23. Bc2 {[%emt 0:01:18]} Nf8 {[%emt 0:00:39]} 24. f3 {[%emt 0:01:06]} exf3
{[%emt 0:00:44]} 25. Rh1 {[%emt 0:01:04]} Ne6 {[%emt 0:00:01]} 26. Ke1 {
[%emt 0:02:38]} Ng5 {[%emt 0:00:13]} 27. Kf2 {[%emt 0:00:06]} Bd8 {[%emt 0:00:
49]} 28. Bg6 {[%emt 0:00:44]} Rh8 {[%emt 0:00:44]} 29. Bf5 {[%emt 0:00:03]} Bc7
{[%emt 0:00:03]} 30. e4 {[%emt 0:00:33]} dxe4 {[%emt 0:01:36]} 31. Nxe4 {
[%emt 0:00:20]} Nxh7 {[%emt 0:00:01]} 32. Rxh7+ {[%emt 0:00:16]} Rxh7 {[%emt 0:
00:01]} 33. Bxh7 {[%emt 0:00:01]} Kxh7 {[%emt 0:00:03]} 34. Nxf6+ {[%emt 0:00:
21]} Kg6 {[%emt 0:00:00]} 35. Ne4 {[%emt 0:00:03]} Bf4 {[%emt 0:00:09]} 36.
Kxf3 {[%emt 0:00:09]} Bc1 {[%emt 0:00:10]} 37. Nd6 {[%emt 0:00:15]} Bxb2 {
[%emt 0:00:02]} 38. Ke4 {[%emt 0:00:01]} 1-0